[Event "Late-Titled-Tuesday-Blitz-May-28-2024"]
[Site "Chess.com"]
[Date "2024.05.28"]
[Round "2"]
[White "TatjanaVasilevich"]
[Black "kalinchick"]
[Result "1-0"]
[WhiteElo "2598"]
[BlackElo "2377"]
[TimeControl "180+1"]
[EndTime "14:18:40 PDT"]
[Termination "TatjanaVasilevich won by checkmate"]

1. d4 {[%clk 0:03:00.9]} 1... Nf6 {[%clk 0:02:59.7]} 2. c4 {[%clk 0:03:00.5]}
2... e6 {[%clk 0:03:00.3]} 3. Nc3 {[%clk 0:03:00.1]} 3... d5 {[%clk 0:03:01]} 4.
cxd5 {[%clk 0:02:59.8]} 4... exd5 {[%clk 0:03:01.2]} 5. Bg5 {[%clk 0:02:59.7]}
5... Nbd7 {[%clk 0:02:59]} 6. e3 {[%clk 0:02:59.3]} 6... Be7 {[%clk 0:02:59.5]}
7. Bd3 {[%clk 0:02:59]} 7... O-O {[%clk 0:03:00.1]} 8. Nge2 {[%clk 0:02:59.2]}
8... h6 {[%clk 0:03:00.6]} 9. Bh4 {[%clk 0:02:59.1]} 9... c6 {[%clk 0:03:00.9]}
10. O-O {[%clk 0:02:59.2]} 10... Ne4 {[%clk 0:03:01.1]} 11. Bxe7 {[%clk
0:02:54.3]} 11... Qxe7 {[%clk 0:03:02]} 12. Bxe4 {[%clk 0:02:54.6]} 12... dxe4
{[%clk 0:03:01.8]} 13. Ng3 {[%clk 0:02:55.5]} 13... Nf6 {[%clk 0:02:57.7]} 14.
f3 {[%clk 0:02:50.8]} 14... exf3 {[%clk 0:02:55.5]} 15. Qxf3 {[%clk 0:02:51.7]}
15... Be6 {[%clk 0:02:37.6]} 16. e4 {[%clk 0:02:49.8]} 16... Rad8 {[%clk
0:02:34.3]} 17. e5 {[%clk 0:02:30.4]} 17... Nd5 {[%clk 0:02:28.4]} 18. Nce4
{[%clk 0:02:29.1]} 18... Qh4 {[%clk 0:02:08]} 19. Rae1 {[%clk 0:01:56.5]} 19...
Ne7 {[%clk 0:01:56.9]} 20. Qf2 {[%clk 0:01:32.8]} 20... b6 {[%clk 0:01:42.5]}
21. Nd6 {[%clk 0:01:31.3]} 21... Nc8 {[%clk 0:01:29.2]} 22. Re4 {[%clk
0:01:25.5]} 22... Qg5 {[%clk 0:01:23.2]} 23. Nxc8 {[%clk 0:01:18.3]} 23... Bxc8
{[%clk 0:01:18.4]} 24. Rf4 {[%clk 0:01:17.6]} 24... Be6 {[%clk 0:01:08.3]} 25.
Ne4 {[%clk 0:01:17.4]} 25... Qe7 {[%clk 0:00:57.3]} 26. a3 {[%clk 0:01:16.9]}
26... Kh8 {[%clk 0:00:41.3]} 27. Qe3 {[%clk 0:01:09.1]} 27... Rd5 {[%clk
0:00:38.6]} 28. Nf6 {[%clk 0:01:04.2]} 28... Rb5 {[%clk 0:00:24.4]} 29. Qd3
{[%clk 0:01:02.7]} 29... gxf6 {[%clk 0:00:20.3]} 30. Rxf6 {[%clk 0:01:02.7]}
30... Rg8 {[%clk 0:00:13.8]} 31. Qe3 {[%clk 0:00:30.4]} 31... Rg5 {[%clk
0:00:12.7]} 32. h4 {[%clk 0:00:27.9]} 32... Rh5 {[%clk 0:00:11.1]} 33. Rxh6+
{[%clk 0:00:27.7]} 33... Rxh6 {[%clk 0:00:11.5]} 34. Qxh6+ {[%clk 0:00:28.6]}
34... Kg8 {[%clk 0:00:12.2]} 35. b4 {[%clk 0:00:22.4]} 35... Qf8 {[%clk
0:00:10.8]} 36. Qe3 {[%clk 0:00:20.4]} 36... Qg7 {[%clk 0:00:09.5]} 37. Rf3
{[%clk 0:00:20.7]} 37... Kf8 {[%clk 0:00:10]} 38. Rg3 {[%clk 0:00:20.9]} 38...
Qh7 {[%clk 0:00:10.6]} 39. Qg5 {[%clk 0:00:21.3]} 39... Rd5 {[%clk 0:00:09.7]}
40. Qf4 {[%clk 0:00:20]} 40... Ke7 {[%clk 0:00:06.5]} 41. Qf6+ {[%clk
0:00:18.8]} 41... Ke8 {[%clk 0:00:06.8]} 42. Rg7 {[%clk 0:00:19]} 42... Qh8
{[%clk 0:00:07.2]} 43. h5 {[%clk 0:00:17.6]} 43... Rxd4 {[%clk 0:00:06.9]} 44.
h6 {[%clk 0:00:17.6]} 44... Rd1+ {[%clk 0:00:06.4]} 45. Kh2 {[%clk 0:00:18]}
45... Rd4 {[%clk 0:00:06.7]} 46. h7 {[%clk 0:00:18]} 46... Rd5 {[%clk
0:00:05.2]} 47. Rg8+ {[%clk 0:00:18]} 47... Kd7 {[%clk 0:00:04.5]} 48. Qd8#
{[%clk 0:00:18.1]} 1-0

[Event "Late-Titled-Tuesday-Blitz-May-28-2024"]
[Site "Chess.com"]
[Date "2024.05.28"]
[Round "2"]
[White "tactic"]
[Black "Sanan_Sjugirov"]
[Result "0-1"]
[WhiteElo "2593"]
[BlackElo "2992"]
[TimeControl "180+1"]
[EndTime "14:18:42 PDT"]
[Termination "Sanan_Sjugirov won by resignation"]

1. e4 {[%clk 0:03:00.9]} 1... c5 {[%clk 0:03:00.2]} 2. c3 {[%clk 0:03:00.8]}
2... Nf6 {[%clk 0:02:59.9]} 3. e5 {[%clk 0:03:01.3]} 3... Nd5 {[%clk 0:03:00.6]}
4. Nf3 {[%clk 0:03:01.9]} 4... d6 {[%clk 0:03:00.4]} 5. Na3 {[%clk 0:03:02.4]}
5... dxe5 {[%clk 0:02:56.6]} 6. Nxe5 {[%clk 0:03:03.2]} 6... e6 {[%clk
0:02:52.5]} 7. Qh5 {[%clk 0:02:42.4]} 7... g6 {[%clk 0:02:48.7]} 8. Qf3 {[%clk
0:02:42.1]} 8... f6 {[%clk 0:01:46.9]} 9. Bb5+ {[%clk 0:02:37.8]} 9... Nd7
{[%clk 0:01:46.8]} 10. Nxd7 {[%clk 0:02:28.4]} 10... Bxd7 {[%clk 0:01:47.7]} 11.
O-O {[%clk 0:02:29]} 11... Bxb5 {[%clk 0:01:24.2]} 12. Nxb5 {[%clk 0:02:29.9]}
12... a6 {[%clk 0:01:24.7]} 13. Na3 {[%clk 0:02:29.2]} 13... Be7 {[%clk
0:01:15.8]} 14. Re1 {[%clk 0:02:27.4]} 14... Qd7 {[%clk 0:01:06.2]} 15. d3
{[%clk 0:02:21.2]} 15... O-O {[%clk 0:01:03.9]} 16. Nc4 {[%clk 0:02:17.1]} 16...
b5 {[%clk 0:00:54.5]} 17. Ne3 {[%clk 0:02:17]} 17... Nxe3 {[%clk 0:00:52]} 18.
Qxe3 {[%clk 0:02:16.7]} 18... e5 {[%clk 0:00:49.1]} 19. a4 {[%clk 0:02:06]}
19... Rad8 {[%clk 0:00:25.8]} 20. axb5 {[%clk 0:02:01]} 20... axb5 {[%clk
0:00:26.7]} 21. Rd1 {[%clk 0:01:34]} 21... Ra8 {[%clk 0:00:26.6]} 22. Ra3 {[%clk
0:01:29.8]} 22... Rxa3 {[%clk 0:00:25.7]} 23. bxa3 {[%clk 0:01:30.7]} 23... Rd8
{[%clk 0:00:23.9]} 24. h4 {[%clk 0:01:28.9]} 24... Bf8 {[%clk 0:00:16.4]} 25. h5
{[%clk 0:01:25.4]} 25... Qg4 {[%clk 0:00:14.3]} 26. f3 {[%clk 0:01:18.4]} 26...
Qxh5 {[%clk 0:00:14.3]} 27. Qe4 {[%clk 0:01:19.1]} 27... c4 {[%clk 0:00:06.6]}
28. d4 {[%clk 0:01:17.9]} 28... Qf5 {[%clk 0:00:05.3]} 29. Qc6 {[%clk
0:01:17.3]} 29... exd4 {[%clk 0:00:04.6]} 30. cxd4 {[%clk 0:01:17.9]} 30... Kf7
{[%clk 0:00:03.2]} 31. Qc7+ {[%clk 0:01:15.4]} 31... Rd7 {[%clk 0:00:03.3]} 32.
Qc6 {[%clk 0:01:14.7]} 32... Qd5 {[%clk 0:00:03.5]} 33. Qc8 {[%clk 0:01:09.4]}
33... Rd8 {[%clk 0:00:03.2]} 34. Qc7+ {[%clk 0:01:09.6]} 34... Rd7 {[%clk
0:00:03.8]} 35. Qc8 {[%clk 0:01:10.3]} 35... h5 {[%clk 0:00:02.8]} 36. Bf4
{[%clk 0:01:10.1]} 36... Rd8 {[%clk 0:00:03.1]} 37. Qc7+ {[%clk 0:01:10.4]}
37... Rd7 {[%clk 0:00:03.7]} 38. Qc8 {[%clk 0:01:11.1]} 38... Qb7 {[%clk
0:00:04.1]} 39. Qxb7 {[%clk 0:01:08.1]} 39... Rxb7 {[%clk 0:00:05]} 40. d5
{[%clk 0:01:08.8]} 40... Bxa3 {[%clk 0:00:04.6]} 41. d6 {[%clk 0:01:04.3]} 41...
Rd7 {[%clk 0:00:04.7]} 42. Rb1 {[%clk 0:01:04.9]} 42... c3 {[%clk 0:00:04.3]}
43. Rxb5 {[%clk 0:01:04.4]} 43... c2 {[%clk 0:00:04.7]} 44. Rb6 {[%clk
0:00:58.3]} 44... c1=Q+ {[%clk 0:00:04.8]} 45. Bxc1 {[%clk 0:00:59]} 45... Bxc1
{[%clk 0:00:05.7]} 46. Rc6 {[%clk 0:00:59.7]} 46... Bf4 {[%clk 0:00:05.5]} 47.
Rc4 {[%clk 0:01:00.4]} 47... Bxd6 {[%clk 0:00:05.6]} 48. Kh1 {[%clk 0:01:00.4]}
48... Be7 {[%clk 0:00:06]} 49. g4 {[%clk 0:01:00.9]} 49... hxg4 {[%clk
0:00:06.1]} 50. fxg4 {[%clk 0:01:01.8]} 50... g5 {[%clk 0:00:05.7]} 51. Kg2
{[%clk 0:01:02.2]} 51... Rd3 {[%clk 0:00:06.1]} 52. Rc7 {[%clk 0:01:02.4]} 52...
Rd4 {[%clk 0:00:06.2]} 53. Kf3 {[%clk 0:01:02.7]} 53... Ke6 {[%clk 0:00:06.5]}
54. Rc6+ {[%clk 0:01:02.1]} 54... Bd6 {[%clk 0:00:06.9]} 55. Rc8 {[%clk
0:01:02.8]} 55... Rf4+ {[%clk 0:00:07.1]} 56. Ke3 {[%clk 0:01:03.3]} 56... Rxg4
{[%clk 0:00:07.5]} 57. Re8+ {[%clk 0:01:03.7]} 57... Kf5 {[%clk 0:00:07.9]} 58.
Kf2 {[%clk 0:01:04]} 58... Be5 {[%clk 0:00:08.2]} 59. Kf1 {[%clk 0:01:04.5]}
59... Rf4+ {[%clk 0:00:08.8]} 60. Kg2 {[%clk 0:01:04.6]} 60... g4 {[%clk
0:00:09.7]} 61. Rg8 {[%clk 0:01:04.6]} 61... Rb4 {[%clk 0:00:09.9]} 62. Kf2
{[%clk 0:01:04.7]} 62... Rb2+ {[%clk 0:00:10.1]} 63. Ke3 {[%clk 0:01:05]} 63...
Rb3+ {[%clk 0:00:09.5]} 64. Ke2 {[%clk 0:01:05.5]} 64... Kf4 {[%clk 0:00:09.8]}
65. Kd2 {[%clk 0:01:04.3]} 65... g3 {[%clk 0:00:09.9]} 66. Kc2 {[%clk
0:01:04.6]} 66... Rf3 {[%clk 0:00:10.4]} 67. Kd2 {[%clk 0:01:05.1]} 67... Rf2+
{[%clk 0:00:10.9]} 68. Ke1 {[%clk 0:01:04.5]} 68... Kf3 {[%clk 0:00:11.2]} 69.
Rd8 {[%clk 0:01:03.6]} 69... Bc3+ {[%clk 0:00:09.1]} 70. Kd1 {[%clk 0:01:03.8]}
70... Rd2+ {[%clk 0:00:09.6]} 71. Kc1 {[%clk 0:01:04.1]} 71... Rxd8 {[%clk
0:00:09.3]} 72. Kc2 {[%clk 0:01:04.8]} 72... g2 {[%clk 0:00:09.7]} 0-1

[Event "Late-Titled-Tuesday-Blitz-May-28-2024"]
[Site "Chess.com"]
[Date "2024.05.28"]
[Round "2"]
[White "laskakid"]
[Black "CristhianPortalR"]
[Result "0-1"]
[WhiteElo "2346"]
[BlackElo "2541"]
[TimeControl "180+1"]
[EndTime "14:18:45 PDT"]
[Termination "CristhianPortalR won on time"]

1. e4 {[%clk 0:03:00.9]} 1... c5 {[%clk 0:03:00]} 2. Nf3 {[%clk 0:03:00.9]} 2...
d6 {[%clk 0:03:00.3]} 3. d3 {[%clk 0:02:59.8]} 3... Nc6 {[%clk 0:02:59.2]} 4. g3
{[%clk 0:02:59.9]} 4... g6 {[%clk 0:02:59.8]} 5. Bg2 {[%clk 0:02:59.9]} 5... Bg7
{[%clk 0:03:00.4]} 6. O-O {[%clk 0:02:57.6]} 6... Nf6 {[%clk 0:02:58.8]} 7. Re1
{[%clk 0:02:56.1]} 7... e5 {[%clk 0:02:58.5]} 8. Nc3 {[%clk 0:02:53.5]} 8... O-O
{[%clk 0:02:58.7]} 9. Nd2 {[%clk 0:02:53.5]} 9... Rb8 {[%clk 0:02:54.7]} 10. a4
{[%clk 0:02:52.5]} 10... a6 {[%clk 0:02:54]} 11. Nc4 {[%clk 0:02:48.9]} 11...
Be6 {[%clk 0:02:04.6]} 12. Nd5 {[%clk 0:02:45.3]} 12... b5 {[%clk 0:01:53.1]}
13. axb5 {[%clk 0:02:44.5]} 13... axb5 {[%clk 0:01:53.4]} 14. Nce3 {[%clk
0:02:44]} 14... Nd7 {[%clk 0:01:48.6]} 15. c3 {[%clk 0:02:24.5]} 15... b4 {[%clk
0:01:47.7]} 16. f4 {[%clk 0:02:18.2]} 16... bxc3 {[%clk 0:01:44.3]} 17. bxc3
{[%clk 0:02:17.7]} 17... Nb6 {[%clk 0:01:35.8]} 18. Nxb6 {[%clk 0:02:00.3]}
18... Qxb6 {[%clk 0:01:31.9]} 19. f5 {[%clk 0:01:59.3]} 19... Bb3 {[%clk
0:01:21.3]} 20. Qf3 {[%clk 0:01:38]} 20... f6 {[%clk 0:01:20.7]} 21. Bd2 {[%clk
0:01:32.2]} 21... Bf7 {[%clk 0:01:13.3]} 22. Nd5 {[%clk 0:01:00.2]} 22... Bxd5
{[%clk 0:01:10.6]} 23. exd5 {[%clk 0:01:00.3]} 23... Ne7 {[%clk 0:01:11.2]} 24.
g4 {[%clk 0:00:47.6]} 24... c4+ {[%clk 0:01:11.1]} 25. Be3 {[%clk 0:00:44.5]}
25... Qb5 {[%clk 0:01:02.6]} 26. d4 {[%clk 0:00:37.9]} 26... Qb2 {[%clk
0:00:48.9]} 27. Bf2 {[%clk 0:00:24.3]} 27... Rb3 {[%clk 0:00:47.6]} 28. Rac1
{[%clk 0:00:22.8]} 28... Bh6 {[%clk 0:00:43.4]} 29. Rb1 {[%clk 0:00:13.1]} 29...
Qxc3 {[%clk 0:00:38.8]} 30. Qxc3 {[%clk 0:00:11.6]} 30... Rxc3 {[%clk
0:00:38.8]} 31. dxe5 {[%clk 0:00:11.1]} 31... fxe5 {[%clk 0:00:37.8]} 32. fxg6
{[%clk 0:00:07.2]} 32... hxg6 {[%clk 0:00:37.4]} 33. Rb7 {[%clk 0:00:06.8]}
33... Rf7 {[%clk 0:00:36.7]} 34. Be4 {[%clk 0:00:05.5]} 34... Kg7 {[%clk
0:00:33.7]} 35. Bh4 {[%clk 0:00:04.5]} 35... Be3+ {[%clk 0:00:23.3]} 36. Kg2
{[%clk 0:00:01.2]} 36... g5 {[%clk 0:00:23.3]} 37. Bg3 {[%clk 0:00:01.2]} 37...
Bf4 {[%clk 0:00:23.3]} 38. Bxf4 {[%clk 0:00:01]} 38... gxf4 {[%clk 0:00:22.7]}
39. h4 {[%clk 0:00:01.1]} 39... Rg3+ {[%clk 0:00:19.3]} 40. Kf2 {[%clk 0:00:01]}
40... Rxg4 {[%clk 0:00:19.6]} 41. h5 {[%clk 0:00:01.1]} 41... f3 {[%clk
0:00:16.2]} 42. Rg1 {[%clk 0:00:00.7]} 42... Rxg1 {[%clk 0:00:15]} 43. Kxg1
{[%clk 0:00:01]} 43... Ng8 {[%clk 0:00:12.1]} 0-1

[Event "Late-Titled-Tuesday-Blitz-May-28-2024"]
[Site "Chess.com"]
[Date "2024.05.28"]
[Round "2"]
[White "szachmistrz2500"]
[Black "JaackCamel"]
[Result "1-0"]
[WhiteElo "2504"]
[BlackElo "2231"]
[TimeControl "180+1"]
[EndTime "14:18:45 PDT"]
[Termination "szachmistrz2500 won on time"]

1. e4 {[%clk 0:02:55.9]} 1... e6 {[%clk 0:02:59.6]} 2. d4 {[%clk 0:02:55.2]}
2... d5 {[%clk 0:02:59.1]} 3. Nc3 {[%clk 0:02:54.4]} 3... Bb4 {[%clk 0:02:58.4]}
4. e5 {[%clk 0:02:53.7]} 4... Ne7 {[%clk 0:02:57.8]} 5. Bd2 {[%clk 0:02:53]}
5... Ng6 {[%clk 0:02:50.2]} 6. Qg4 {[%clk 0:02:46]} 6... c5 {[%clk 0:02:44.8]}
7. O-O-O {[%clk 0:02:45.1]} 7... cxd4 {[%clk 0:02:38.1]} 8. Nb5 {[%clk
0:02:44.8]} 8... Bxd2+ {[%clk 0:02:34.6]} 9. Rxd2 {[%clk 0:02:44.8]} 9... O-O
{[%clk 0:02:29.4]} 10. f4 {[%clk 0:02:34.9]} 10... Nc6 {[%clk 0:02:23.6]} 11.
Nf3 {[%clk 0:02:30.7]} 11... f6 {[%clk 0:02:15.8]} 12. exf6 {[%clk 0:02:25.9]}
12... e5 {[%clk 0:02:13.7]} 13. f5 {[%clk 0:02:23.1]} 13... Qxf6 {[%clk
0:02:05.2]} 14. Nc7 {[%clk 0:02:21.4]} 14... Bxf5 {[%clk 0:02:02.9]} 15. Qg3
{[%clk 0:02:18.6]} 15... Rad8 {[%clk 0:01:53.8]} 16. Nxd5 {[%clk 0:02:17.9]}
16... Rxd5 {[%clk 0:01:43.3]} 17. Bc4 {[%clk 0:02:17.8]} 17... Be6 {[%clk
0:01:43.7]} 18. Ng5 {[%clk 0:02:14.3]} 18... Rd6 {[%clk 0:01:36.2]} 19. Nxe6
{[%clk 0:02:10.5]} 19... Rxe6 {[%clk 0:01:35.9]} 20. Rf1 {[%clk 0:01:55.9]}
20... Qxf1+ {[%clk 0:01:35.5]} 21. Bxf1 {[%clk 0:01:55.3]} 21... Rxf1+ {[%clk
0:01:35.7]} 22. Rd1 {[%clk 0:01:55.7]} 22... Ref6 {[%clk 0:01:31.5]} 23. Qb3+
{[%clk 0:01:51.5]} 23... Rf7 {[%clk 0:01:27.5]} 24. Qe6 {[%clk 0:01:45.3]} 24...
Rxd1+ {[%clk 0:01:26.6]} 25. Kxd1 {[%clk 0:01:45.1]} 25... Nf4 {[%clk
0:00:53.2]} 26. Qc8+ {[%clk 0:01:42.4]} 26... Rf8 {[%clk 0:00:52]} 27. Qxb7
{[%clk 0:01:42.4]} 27... Nd8 {[%clk 0:00:44.4]} 28. Qb3+ {[%clk 0:01:32.2]}
28... Nfe6 {[%clk 0:00:41.5]} 29. Qd5 {[%clk 0:01:28.8]} 29... Kf7 {[%clk
0:00:37.5]} 30. Qxe5 {[%clk 0:01:28]} 30... Re8 {[%clk 0:00:33.3]} 31. Qf5+
{[%clk 0:01:23.4]} 31... Ke7 {[%clk 0:00:32.6]} 32. Qxh7 {[%clk 0:01:22.5]}
32... Kd6 {[%clk 0:00:30.7]} 33. h4 {[%clk 0:01:20.5]} 33... Rf8 {[%clk
0:00:29.8]} 34. g4 {[%clk 0:01:11.8]} 34... Nc6 {[%clk 0:00:29.6]} 35. a3 {[%clk
0:01:07.9]} 35... Rf2 {[%clk 0:00:28.5]} 36. h5 {[%clk 0:01:03.5]} 36... Ne5
{[%clk 0:00:28]} 37. g5 {[%clk 0:00:47.2]} 37... Nf3 {[%clk 0:00:20.8]} 38. h6
{[%clk 0:00:36.5]} 38... Nf4 {[%clk 0:00:20.3]} 39. c4 {[%clk 0:00:28.5]} 39...
d3 {[%clk 0:00:16.9]} 40. c5+ {[%clk 0:00:26.9]} 40... Kxc5 {[%clk 0:00:11.7]}
41. Qf5+ {[%clk 0:00:26.7]} 41... Ne5 {[%clk 0:00:03.8]} 42. hxg7 {[%clk
0:00:20.3]} 42... Kd4 {[%clk 0:00:02.1]} 43. Qxe5+ {[%clk 0:00:08.2]} 43... Kxe5
{[%clk 0:00:01.8]} 44. g8=Q {[%clk 0:00:09]} 44... Ke4 {[%clk 0:00:01.5]} 45.
Qe8+ {[%clk 0:00:08.7]} 45... Kf3 {[%clk 0:00:01.5]} 46. g6 {[%clk 0:00:08]} 1-0

[Event "Late-Titled-Tuesday-Blitz-May-28-2024"]
[Site "Chess.com"]
[Date "2024.05.28"]
[Round "2"]
[White "KorolDimitriy75"]
[Black "arctic_t00"]
[Result "0-1"]
[WhiteElo "2395"]
[BlackElo "2641"]
[TimeControl "180+1"]
[EndTime "14:18:48 PDT"]
[Termination "arctic_t00 won by checkmate"]

1. d4 {[%clk 0:03:00.9]} 1... g6 {[%clk 0:02:58.2]} 2. c4 {[%clk 0:03:00.9]}
2... Bg7 {[%clk 0:02:58.7]} 3. Nf3 {[%clk 0:03:01.8]} 3... d6 {[%clk 0:02:58.7]}
4. Nc3 {[%clk 0:03:02]} 4... Nf6 {[%clk 0:02:59.4]} 5. e4 {[%clk 0:03:02.2]}
5... O-O {[%clk 0:03:00.2]} 6. Be2 {[%clk 0:03:03.1]} 6... Na6 {[%clk
0:02:59.5]} 7. O-O {[%clk 0:03:02.6]} 7... e5 {[%clk 0:03:00.1]} 8. Re1 {[%clk
0:03:02.9]} 8... Bg4 {[%clk 0:02:58.7]} 9. Be3 {[%clk 0:03:02.2]} 9... Re8
{[%clk 0:02:56.2]} 10. d5 {[%clk 0:02:59.6]} 10... Nc5 {[%clk 0:02:53.8]} 11.
Qc2 {[%clk 0:02:25.3]} 11... a5 {[%clk 0:02:44.6]} 12. h3 {[%clk 0:01:53.3]}
12... Bd7 {[%clk 0:02:40.6]} 13. Nd2 {[%clk 0:01:44.4]} 13... Rf8 {[%clk
0:02:22.7]} 14. b3 {[%clk 0:01:36.4]} 14... Ne8 {[%clk 0:02:20.3]} 15. a3 {[%clk
0:01:31.6]} 15... b6 {[%clk 0:02:17.2]} 16. b4 {[%clk 0:01:22.6]} 16... Nb7
{[%clk 0:02:16.8]} 17. Nb5 {[%clk 0:01:14.4]} 17... f5 {[%clk 0:02:15.9]} 18. f3
{[%clk 0:01:14.2]} 18... f4 {[%clk 0:02:03.1]} 19. Bf2 {[%clk 0:01:14.1]} 19...
g5 {[%clk 0:02:04]} 20. c5 {[%clk 0:01:02.6]} 20... bxc5 {[%clk 0:01:58.2]} 21.
bxc5 {[%clk 0:01:03.5]} 21... Nxc5 {[%clk 0:01:58.3]} 22. Bxc5 {[%clk
0:01:03.9]} 22... dxc5 {[%clk 0:01:57.9]} 23. Qxc5 {[%clk 0:01:04.5]} 23... h5
{[%clk 0:01:22.2]} 24. Rec1 {[%clk 0:01:00.7]} 24... g4 {[%clk 0:01:11.4]} 25.
fxg4 {[%clk 0:00:31.2]} 25... hxg4 {[%clk 0:01:11.3]} 26. hxg4 {[%clk
0:00:30.2]} 26... Qh4 {[%clk 0:01:06.1]} 27. Nxc7 {[%clk 0:00:20.6]} 27... Rc8
{[%clk 0:00:56.3]} 28. d6 {[%clk 0:00:20.6]} 28... Nxc7 {[%clk 0:00:46.7]} 29.
dxc7 {[%clk 0:00:20.2]} 29... Bxg4 {[%clk 0:00:45.6]} 30. Bxg4 {[%clk
0:00:18.9]} 30... Qxg4 {[%clk 0:00:46.5]} 31. Nf3 {[%clk 0:00:18.8]} 31... Qg6
{[%clk 0:00:26.9]} 32. Rc4 {[%clk 0:00:14.6]} 32... Qe6 {[%clk 0:00:25]} 33.
Rac1 {[%clk 0:00:13.8]} 33... Bf6 {[%clk 0:00:21.2]} 34. Qxa5 {[%clk 0:00:12.2]}
34... Rf7 {[%clk 0:00:20.6]} 35. a4 {[%clk 0:00:11.4]} 35... Rg7 {[%clk
0:00:20.7]} 36. Qb5 {[%clk 0:00:09.8]} 36... Qg4 {[%clk 0:00:17.7]} 37. Qd5+
{[%clk 0:00:09.1]} 37... Kh8 {[%clk 0:00:15.6]} 38. R1c2 {[%clk 0:00:07.5]}
38... Qxf3 {[%clk 0:00:15.4]} 39. Qe6 {[%clk 0:00:06.8]} 39... Qd1+ {[%clk
0:00:14.5]} 40. Kf2 {[%clk 0:00:06.9]} 40... Bh4+ {[%clk 0:00:12.1]} 41. g3
{[%clk 0:00:06.5]} 41... Bxg3+ {[%clk 0:00:11]} 42. Kg2 {[%clk 0:00:06.2]} 42...
Bh4+ {[%clk 0:00:10.6]} 43. Kh2 {[%clk 0:00:05.9]} 43... Qg1+ {[%clk 0:00:09.7]}
44. Kh3 {[%clk 0:00:06.3]} 44... Qg3# {[%clk 0:00:09.8]} 0-1

[Event "Late-Titled-Tuesday-Blitz-May-28-2024"]
[Site "Chess.com"]
[Date "2024.05.28"]
[Round "2"]
[White "The_Machine04"]
[Black "Ykow"]
[Result "0-1"]
[WhiteElo "2805"]
[BlackElo "2563"]
[TimeControl "180+1"]
[EndTime "14:18:49 PDT"]
[Termination "Ykow won by checkmate"]

1. d4 {[%clk 0:03:00.9]} 1... d5 {[%clk 0:02:59.9]} 2. Nf3 {[%clk 0:03:00.8]}
2... Nf6 {[%clk 0:02:59.8]} 3. e3 {[%clk 0:03:00.7]} 3... c5 {[%clk 0:02:59]} 4.
c3 {[%clk 0:02:59.6]} 4... e6 {[%clk 0:02:58.6]} 5. Nbd2 {[%clk 0:02:59.5]} 5...
Be7 {[%clk 0:02:54.8]} 6. Bd3 {[%clk 0:02:59.3]} 6... b6 {[%clk 0:02:55.3]} 7.
Ne5 {[%clk 0:02:59]} 7... Bb7 {[%clk 0:02:55.5]} 8. f4 {[%clk 0:02:59.4]} 8...
O-O {[%clk 0:02:55.4]} 9. Qf3 {[%clk 0:02:59.5]} 9... Ne8 {[%clk 0:02:31.7]} 10.
Qh3 {[%clk 0:02:57.9]} 10... f5 {[%clk 0:02:31.1]} 11. g4 {[%clk 0:02:53.3]}
11... Nd6 {[%clk 0:02:29.5]} 12. Ndf3 {[%clk 0:02:48]} 12... Ba6 {[%clk
0:02:25.7]} 13. Bc2 {[%clk 0:02:35.5]} 13... Ne4 {[%clk 0:02:22.9]} 14. gxf5
{[%clk 0:02:31.7]} 14... exf5 {[%clk 0:02:22.6]} 15. Rg1 {[%clk 0:02:28.6]}
15... Qc8 {[%clk 0:02:06.4]} 16. Bd2 {[%clk 0:02:22.6]} 16... Nd7 {[%clk
0:01:56.7]} 17. O-O-O {[%clk 0:02:22]} 17... Nxe5 {[%clk 0:01:55.9]} 18. Nxe5
{[%clk 0:02:20.5]} 18... Bf6 {[%clk 0:01:50.3]} 19. Be1 {[%clk 0:02:19.4]} 19...
Qe6 {[%clk 0:01:44.8]} 20. Bxe4 {[%clk 0:02:05.3]} 20... dxe4 {[%clk 0:01:44.3]}
21. d5 {[%clk 0:02:05.9]} 21... Qc8 {[%clk 0:01:30.2]} 22. d6 {[%clk 0:02:05.7]}
22... Bxe5 {[%clk 0:01:29.7]} 23. fxe5 {[%clk 0:02:05]} 23... Qe6 {[%clk
0:01:29.4]} 24. Bh4 {[%clk 0:01:45.5]} 24... Qxa2 {[%clk 0:01:18.3]} 25. Qg2
{[%clk 0:01:18.9]} 25... Rf7 {[%clk 0:01:05.3]} 26. Qc2 {[%clk 0:00:41.6]} 26...
Bd3 {[%clk 0:00:53]} 27. Rxd3 {[%clk 0:00:41.3]} 27... exd3 {[%clk 0:00:53.9]}
28. Qxd3 {[%clk 0:00:41.8]} 28... Qe6 {[%clk 0:00:54.6]} 29. Bg3 {[%clk
0:00:38.7]} 29... a5 {[%clk 0:00:45.1]} 30. Bf4 {[%clk 0:00:38.9]} 30... a4
{[%clk 0:00:44.8]} 31. c4 {[%clk 0:00:34.8]} 31... a3 {[%clk 0:00:41.9]} 32.
bxa3 {[%clk 0:00:35.7]} 32... Ra4 {[%clk 0:00:42.1]} 33. Kb2 {[%clk 0:00:35.4]}
33... Rxc4 {[%clk 0:00:41.1]} 34. Rd1 {[%clk 0:00:34.2]} 34... Rd7 {[%clk
0:00:38.6]} 35. Qb3 {[%clk 0:00:33.8]} 35... g5 {[%clk 0:00:35.3]} 36. Rc1
{[%clk 0:00:31.3]} 36... b5 {[%clk 0:00:35.7]} 37. Rg1 {[%clk 0:00:26.6]} 37...
h6 {[%clk 0:00:31.4]} 38. h4 {[%clk 0:00:26.6]} 38... Rg7 {[%clk 0:00:19]} 39.
hxg5 {[%clk 0:00:22.8]} 39... hxg5 {[%clk 0:00:19.9]} 40. Bg3 {[%clk 0:00:14]}
40... f4 {[%clk 0:00:19.1]} 41. Qxb5 {[%clk 0:00:06.1]} 41... fxg3 {[%clk
0:00:16.1]} 42. Qb8+ {[%clk 0:00:06.3]} 42... Kh7 {[%clk 0:00:15.4]} 43. Rh1+
{[%clk 0:00:06.6]} 43... Kg6 {[%clk 0:00:15.7]} 44. d7 {[%clk 0:00:04.4]} 44...
Rxd7 {[%clk 0:00:12.9]} 45. Qh8 {[%clk 0:00:02.8]} 45... Kf5 {[%clk 0:00:10]}
46. Rf1+ {[%clk 0:00:02.3]} 46... Ke4 {[%clk 0:00:10]} 47. Qh7+ {[%clk
0:00:02.5]} 47... Rxh7 {[%clk 0:00:09.5]} 48. Rf2 {[%clk 0:00:02]} 48... gxf2
{[%clk 0:00:09.1]} 49. a4 {[%clk 0:00:01.9]} 49... Rb4+ {[%clk 0:00:08.6]} 50.
Ka3 {[%clk 0:00:02.4]} 50... Qb3# {[%clk 0:00:08.7]} 0-1